bitfinex-derivatives/quotes_SOLF0:USTF0_20250716
["timestamp","ask_amount","ask_price","bid_price","bid_amount"]
[1752685440355,3.18,172.86,172.84,3.64963234]
[1752685440648,3.18,172.87,172.84,0.51963234]
[1752685440846,186.2,172.88,172.86,3.13]
[1752685441044,16.0661653,172.89,172.84,0.51963234]
[1752685441241,499.78,172.91,172.87,3.13]
[1752685441242,188.9,172.88,172.87,3.13]
[1752685441844,188.9,172.88,172.87,0.86459449]
[1752685442042,3.18,172.87,172.85,5.7826]
[1752685442242,185.72,172.88,172.86,5.7824]
[1752685442741,185.72,172.88,172.85,5.7826]
[1752685443051,3.18,172.86,172.84,0.51963234]
[1752685443442,3.18,172.85,172.84,6.30253234]
[1752685443644,3.18,172.86,172.84,0.51963234]
[1752685443847,3.18,172.87,172.85,3.13]
[1752685444044,185.72,172.88,172.86,3.13]
[1752685444245,185.72,172.88,172.87,3.13]
[1752685445250,188.9,172.88,172.87,3.13]
[1752685445644,3.18,172.91,172.86,3.13]
[1752685445950,188.68,172.9,172.86,3.13]
[1752685446142,188.68,172.9,172.88,5.7817]
[1752685446348,3.18,172.89,172.88,3.13]
[1752685446850,3.18,172.89,172.84,8.01838759]
[1752685447154,3.18,172.89,172.85,3.13]
[1752685447448,3.18,172.89,172.87,3.13]
[1752685447748,3.18,172.88,172.87,3.13]
[1752685448143,191.2812,172.9,172.86,3.13]
[1752685448144,3.18,172.9,172.86,3.13]
[1752685448347,185.4,172.89,172.87,5.7819]
[1752685448550,185.4,172.89,172.88,3.13]
[1752685448755,188.58,172.89,172.88,3.13]
[1752685449042,185.4,172.89,172.87,3.13]
[1752685449250,3.18,172.88,172.85,7.49875525]
[1752685449453,3.18,172.88,172.87,3.13]
[1752685450545,185.42,172.89,172.84,8.01838759]
[1752685450546,3.18,172.87,172.85,3.13]
[1752685450742,185.42,172.89,172.84,3.64963234]
[1752685450743,12.92785575,172.88,172.84,3.64963234]
[1752685450946,12.92785575,172.88,172.84,0.51963234]
[1752685451144,185.47596272,172.89,172.86,3.13]
[1752685451549,185.47596272,172.89,172.86,8.9121]
[1752685451742,3.18,172.88,172.84,0.51963234]
[1752685451943,12.92785575,172.86,172.84,0.14486196]
[1752685452143,188.22,172.85,172.84,0.14486196]
[1752685452546,185.04,172.85,172.83,1.25323436]
[1752685452750,14.02183499,172.84,172.83,1.25323436]
[1752685453055,14.02183499,172.84,172.83,0.34983944]
[1752685453962,8.9631,172.84,172.83,0.34983944]
[1752685454151,3.18,172.84,172.83,0.34983944]
[1752685454451,184.98,172.85,172.84,5.7829]
[1752685454657,13.18031385,172.89,172.84,5.05873499]
[1752685454848,0.23596272,172.89,172.84,3.13]
[1752685455250,0.23596272,172.89,172.88,8.9118]
[1752685456051,0.09110076,172.89,172.88,8.9118]
[1752685456261,0.09110076,172.89,172.88,16.40250024]
[1752685457058,0.60721682,172.9,172.89,5.7814]
[1752685457251,1.27982007,172.92,172.9,3.16]
[1752685457446,2.24883035,172.94,172.92,3.16]
[1752685457656,3.66751427,172.97,172.94,16.23050024]
[1752685458946,3.66751427,172.97,172.94,8.7398]
[1752685459152,3.66751427,172.97,172.94,16.23050024]
[1752685460555,1.621e-05,172.96,172.95,5.7794]
[1752685463463,3.12001621,172.96,172.9,7.49070024]
[1752685463764,3.12001621,172.96,172.87,7.55]
[1752685463961,3.12001621,172.96,172.88,5.7815]
[1752685464167,5.7795,172.95,172.87,7.55]
[1752685464369,3.12,172.94,172.87,7.55]
[1752685464668,3.12,172.94,172.89,5.7812]
[1752685465670,3.12,172.95,172.87,7.55]
[1752685465855,3.12,172.95,172.88,7.49070024]
[1752685466055,3.12,172.95,172.9,7.49070024]
[1752685466369,3.12,172.95,172.94,5.7796]
[1752685466569,1.621e-05,172.96,172.92,7.49070024]
[1752685466865,1.621e-05,172.96,172.95,5.7794]
[1752685468062,3.12001621,172.96,172.95,5.7794]
[1752685469373,3.12001621,172.96,172.89,7.49070024]
[1752685469765,1.621e-05,172.96,172.93,5.7798]
[1752685470071,3.12001621,172.96,172.89,7.49070024]
[1752685470369,1.621e-05,172.96,172.91,7.49070024]
[1752685470570,3.12001621,172.96,172.93,7.49070024]
[1752685470774,1.621e-05,172.96,172.94,5.7795]
[1752685471073,1.621e-05,172.96,172.93,7.49070024]
[1752685471464,1.621e-05,172.96,172.95,5.7794]
[1752685473570,1.621e-05,172.96,172.95,244.7794]
[1752685473779,2.14885364,172.99,172.95,239.0]
[1752685473969,5.11473828,173.01,172.98,7.49070024]
[1752685474168,8.23473828,173.01,172.99,7.49070024]
[1752685474372,3.12,173.0,172.99,5.7779]
[1752685474572,3.12,173.0,172.97,7.49070024]
[1752685474573,5.11473828,173.01,172.94,148.54508205]
[1752685474776,3.12,173.0,172.96,7.49070024]
[1752685474974,3.12,173.0,172.94,148.54508205]
[1752685475166,3.12,173.0,172.94,156.03578229]
[1752685475370,3.12,173.0,172.94,148.54508205]
[1752685475571,12.94435113,173.0,172.94,148.54508205]
[1752685475772,3.12,172.99,172.94,148.54508205]
[1752685476767,3.12,172.98,172.94,148.54508205]
[1752685478772,7.49070024,172.98,172.94,148.54508205]
[1752685478976,8.8988,172.97,172.94,148.54508205]
[1752685479176,3.12,172.96,172.94,148.54508205]
[1752685479480,20.43505137,172.98,172.92,35.03]
[1752685479776,3.12,172.94,172.92,35.03]
[1752685480178,3.12,172.93,172.92,35.03]
[1752685480378,3.12,172.98,172.92,35.03]
[1752685480583,3.12,172.96,172.93,13.27070024]
[1752685480774,3.12,172.98,172.95,7.49070024]
[1752685480973,3.12,173.0,172.98,5.7781]
[1752685481177,5.11473828,173.01,172.97,7.49070024]
[1752685481376,8.23473828,173.01,172.97,7.49070024]
[1752685481780,5.11473828,173.01,172.99,7.49070024]
[1752685481973,6.10157899,173.03,173.0,7.49070024]
[1752685482174,6.10157899,173.03,172.99,7.49070024]
[1752685482175,0.25747998,173.05,173.04,5.7764]
[1752685482379,0.38350983,173.11,173.04,7.49070024]
[1752685482570,3.12,173.1,173.04,7.49070024]
[1752685482775,3.12,173.09,173.03,7.49070024]
[1752685483379,3.12,173.09,172.99,239.0]
[1752685483685,3.12,173.09,173.02,7.49070024]
[1752685483983,8.895,173.09,173.02,7.49070024]
[1752685484184,3.12,173.08,173.03,37.33]
[1752685485378,0.38350983,173.11,173.03,37.33]
[1752685485379,3.12,173.07,173.03,37.33]
[1752685485986,3.12,173.06,173.03,37.33]
[1752685486375,3.12,173.04,173.03,37.33]
[1752685488381,0.38350983,173.11,173.03,37.33]
[1752685488578,3.41,173.1,173.03,37.33]
[1752685488879,7.49070024,173.08,173.03,85.90697274]
[1752685489182,3.41,173.1,173.03,91.68347274]
[1752685489388,3.41,173.1,173.03,85.90697274]
[1752685489772,10.90070024,173.1,173.03,85.90697274]
[1752685489981,3.41,173.07,173.03,85.90697274]
[1752685491275,5.776,173.06,173.03,85.90697274]
[1752685491476,3.41,173.06,173.03,85.90697274]
[1752685491787,5.7753,173.08,173.03,85.90697274]
[1752685492084,3.41,173.07,173.03,85.90697274]
[1752685492282,5.7763,173.05,173.03,85.90697274]
[1752685492475,3.41,173.04,173.03,85.90697274]
[1752685493680,5.7764,173.04,173.03,85.90697274]
[1752685493879,9.1864,173.04,173.03,85.90697274]
[1752685494275,3.41,173.0,172.97,7.53]
[1752685494476,5.7775,173.01,172.97,7.53]
[1752685494776,3.41,172.98,172.97,7.53]
[1752685495781,3.41,172.98,172.92,35.03]
[1752685495979,7.49070024,172.99,172.92,35.03]
[1752685495980,5.78,172.93,172.92,35.03]
[1752685496181,9.19,172.93,172.92,35.03]
[1752685496385,3.41,172.9,172.82,1.4477468]
[1752685496572,3.41,172.92,172.89,3.36]
[1752685496776,20.43505137,172.98,172.89,3.36]
[1752685496983,3.41,172.91,172.86,7.49070024]
[1752685497180,3.41,172.9,172.87,3.36]
[1752685498180,16.35435113,172.97,172.89,3.36]
[1752685498388,3.41,172.97,172.91,7.49070024]
[1752685498583,12.94435113,173.0,172.91,7.49070024]
[1752685498783,3.41,172.99,172.94,3.36]
[1752685499085,506.61070024,173.04,172.95,3.36]
[1752685499086,3.41,172.98,172.95,3.36]
[1752685499385,3.41,172.97,172.89,34.93]
[1752685499587,12.94435113,172.95,172.89,34.93]
[1752685499773,9.1897,172.94,172.89,34.93]
[1752685499976,3.41,172.93,172.89,34.93]
[1752685500177,3.41,172.92,172.89,34.93]
[1752685500380,3.41,172.91,172.89,34.93]
[1752685500580,3.41,172.94,172.89,34.93]
[1752685501582,18.72395113,172.95,172.89,38.29]
[1752685501785,3.41,172.92,172.89,38.29]
[1752685502387,3.41,172.93,172.89,34.93]
[1752685502884,9.1901,172.93,172.89,34.93]
[1752685503092,3.41,172.92,172.89,34.93]
[1752685504385,3.41,172.92,172.9,3.36]
[1752685504582,3.41,172.91,172.89,34.93]
[1752685505186,3.41,172.93,172.89,34.93]
[1752685505392,3.41,172.9,172.85,239.0]
[1752685505587,3.41,172.88,172.83,0.34983944]
[1752685505894,16.35435113,172.88,172.83,0.34983944]
[1752685506084,3.41,172.87,172.83,0.34983944]
[1752685506281,3.41,172.85,172.83,0.34983944]
[1752685507288,3.41,172.84,172.83,0.34983944]
[1752685507682,9.193,172.84,172.83,0.34983944]
[1752685508287,9.1934,172.83,172.82,1.4477468]
[1752685508888,3.41,172.83,172.82,1.4477468]
[1752685509695,184.58,172.87,172.81,1.7669102]
[1752685509696,10.90070024,172.82,172.81,1.7669102]
[1752685510097,16.68440024,172.82,172.81,1.7669102]
[1752685510793,3.41,172.82,172.81,1.7669102]
[1752685511304,9.1937,172.82,172.81,1.7669102]
[1752685512693,3.41,172.82,172.81,1.7669102]
[1752685512888,3.41,172.85,172.81,9.25761044]
[1752685513192,3.41,172.85,172.83,3.36]
[1752685513890,184.18,172.86,172.81,1.7669102]
[1752685514197,3.41,172.85,172.81,1.7669102]
[1752685514394,5.7831,172.84,172.81,1.7669102]
[1752685514597,3.41,172.82,172.81,1.7669102]
[1752685515498,9.1937,172.82,172.81,1.7669102]
[1752685516691,5.784,172.81,172.8,1.00743336]
[1752685516888,16.49470024,172.81,172.8,1.00743336]
[1752685517488,5.7844,172.8,172.79,17.95813781]
[1752685517688,193.1644,172.8,172.79,17.95813781]
[1752685517897,193.1644,172.8,172.79,2.20813781]
[1752685518099,200.65510024,172.8,172.79,2.20813781]
[1752685519097,200.65510024,172.8,172.78,2.41601312]
[1752685519098,9.0047,172.79,172.78,2.41601312]
[1752685519289,9.0047,172.79,172.77,2.61987916]
[1752685519290,3.22,172.79,172.77,2.61987916]
[1752685519497,10.71070024,172.78,172.77,2.61987916]
[1752685519697,3.22,172.77,172.75,1.46309606]
[1752685519999,3.22,172.75,172.71,3.93088221]
[1752685520202,16.49780024,172.72,172.71,3.93088221]
[1752685520504,200.67780024,172.72,172.71,3.93088221]
[1752685520998,10.71070024,172.72,172.71,3.93088221]
[1752685521691,10.71070024,172.72,172.67,4.72354129]
[1752685521692,3.22,172.71,172.67,4.72354129]
[1752685521891,184.18,172.73,172.67,4.72354129]
[1752685521892,187.44,172.73,172.68,3.25]
[1752685522094,187.44,172.73,172.69,3.25]
[1752685522095,3.22,172.72,172.69,3.25]
[1752685523103,3.22,172.71,172.69,3.25]
[1752685523308,184.22,172.73,172.71,3.25]
[1752685523500,3.22,172.72,172.69,3.25]
[1752685523807,193.2268,172.73,172.68,3.25]
[1752685524103,187.44,172.73,172.68,3.25]
[1752685524406,187.44,172.73,172.67,12.21424153]
[1752685524600,3.22,172.72,172.7,3.25]
[1752685525295,3.22,172.71,172.67,12.21424153]
[1752685525500,3.22,172.71,172.68,3.25]
[1752685525700,3.22,172.71,172.67,4.72354129]
[1752685526008,3.22,172.72,172.7,3.25]
[1752685526501,3.22,172.72,172.67,4.72354129]
[1752685526502,9.0072,172.72,172.67,4.72354129]
[1752685526704,3.22,172.71,172.68,3.25]
[1752685527104,7.49070024,172.71,172.67,4.72354129]
[1752685527297,3.22,172.7,172.67,4.72354129]
[1752685528095,3.22,172.68,172.67,4.72354129]
[1752685528701,9.0084,172.68,172.67,4.72354129]
[1752685529103,3.22,172.7,172.67,7.97354129]
[1752685529304,191.71070024,172.73,172.67,7.97354129]
[1752685529514,3.22,172.69,172.67,7.97354129]
[1752685531502,9.0075,172.71,172.68,3.25]
[1752685531709,3.22,172.7,172.68,3.25]
[1752685533103,3.22,172.73,172.68,3.25]
[1752685533308,3.22,172.8,172.72,3.25]
[1752685533510,3.22,172.78,172.72,3.25]
[1752685534105,3.22,172.78,172.72,10.74070024]
[1752685534510,3.22,172.78,172.72,3.25]
[1752685534911,3.22,172.76,172.68,10.74070024]
[1752685535217,3.22,172.76,172.68,3.25]
[1752685535414,184.24,172.79,172.68,3.25]
[1752685535717,3.22,172.77,172.74,3.25]
[1752685535919,3.22,172.77,172.72,7.49070024]
[1752685536120,9.0056,172.77,172.74,3.25]
[1752685536321,3.22,172.76,172.73,3.25]
[1752685536613,5.7861,172.75,172.73,3.25]
[1752685536814,3.22,172.75,172.73,3.25]
[1752685537008,3.22,172.77,172.71,7.49070024]
[1752685537207,9.0064,172.74,172.72,3.25]
[1752685538214,5.7875,172.71,172.69,3.25]
[1752685538412,9.0075,172.71,172.69,3.25]
[1752685538914,5.7877,172.7,172.69,3.25]
[1752685539614,5.7881,172.69,172.67,7.97354129]
[1752685539808,7.49070024,172.76,172.69,3.25]
[1752685539809,3.22,172.72,172.69,3.25]
[1752685540008,3.22,172.71,172.69,3.25]
[1752685540517,3.22,172.75,172.69,3.25]
[1752685541115,5.7868,172.73,172.69,3.25]
[1752685541507,3.22,172.75,172.69,3.25]
[1752685542120,5.7868,172.73,172.69,3.25]
[1752685542313,5.7868,172.73,172.7,3.25]
[1752685542513,9.0068,172.73,172.71,3.25]
[1752685543309,5.7871,172.72,172.71,3.25]
[1752685544021,9.0068,172.73,172.71,3.25]
[1752685546217,9.0068,172.73,172.72,3.25]
[1752685547120,9.0068,172.73,172.7,7.49070024]
[1752685547121,5.7871,172.72,172.71,3.24]
[1752685547314,3.37,172.77,172.71,3.24]
[1752685548018,5.7869,172.73,172.71,3.24]
[1752685548220,3.37,172.73,172.71,3.24]
[1752685548419,3.37,172.72,172.71,3.24]
[1752685548619,3.37,172.72,172.69,7.49070024]
[1752685548821,3.37,172.72,172.7,3.24]
[1752685549019,3.37,172.77,172.7,3.24]
[1752685549419,7.49070024,172.76,172.67,7.96354129]
[1752685549629,3.37,172.75,172.67,7.96354129]
[1752685550219,3.37,172.7,172.67,7.96354129]
[1752685550529,3.37,172.69,172.67,7.96354129]
[1752685551023,3.37,172.7,172.68,3.24]
[1752685551834,3.37,172.74,172.67,4.72354129]
[1752685552024,3.37,172.73,172.71,3.24]
[1752685552717,7.49070024,172.79,172.69,7.49070024]
[1752685552919,499.72,172.82,172.73,7.49070024]
[1752685553224,3.37,172.8,172.75,3.24]
[1752685553423,3.37,172.79,172.77,3.24]
[1752685553821,3.37,172.8,172.74,3.24]
[1752685554224,3.37,172.75,172.72,3.24]
[1752685554423,3.37,172.76,172.68,3.24]
[1752685554822,9.1568,172.73,172.68,3.24]
[1752685555022,3.37,172.8,172.72,3.24]
[1752685555222,5.7856,172.77,172.74,7.49070024]
[1752685555422,3.37,172.81,172.67,243.72354129]
[1752685555720,3.37,172.81,172.77,3.24]
[1752685556524,3.37,172.81,172.79,3.24]
[1752685556920,3.37,172.8,172.77,3.24]
[1752685557221,3.37,172.8,172.78,3.24]
[1752685558533,187.43,172.83,172.78,3.24]
[1752685558728,9.1544,172.81,172.79,3.24]
[1752685558928,3.37,172.8,172.79,3.24]
[1752685559227,3.37,172.8,172.78,10.73070024]
[1752685559628,3.37,172.8,172.78,3.24]
[1752685559934,3.37,172.82,172.75,7.49070024]
[1752685560228,3.37,172.78,172.76,3.24]
[1752685561325,3.37,172.8,172.78,3.24]
[1752685561532,3.37,172.85,172.79,7.49070024]
[1752685561725,3.37,172.85,172.8,3.24]
[1752685562027,3.37,172.86,172.82,3.24]
[1752685562428,3.37,172.86,172.83,3.24]
[1752685562629,3.37,172.85,172.83,3.24]
[1752685563034,5.783,172.84,172.83,3.24]
[1752685563735,3.37,172.87,172.81,7.49070024]
[1752685564131,5.784,172.82,172.8,242.24]
[1752685564435,5.784,172.82,172.8,3.24]
[1752685564436,3.37,172.82,172.8,3.24]
[1752685564731,5.7846,172.8,172.78,3.24]
[1752685565234,9.1546,172.8,172.78,3.24]
[1752685565532,3.37,172.8,172.78,3.24]
[1752685566127,5.7846,172.8,172.73,7.49070024]
[1752685566325,3.37,172.8,172.74,3.24]
[1752685567730,3.37,172.75,172.73,3.24]
[1752685568326,9.1555,172.77,172.71,3.24]
[1752685568539,3.37,172.77,172.71,3.24]
[1752685568833,5.7859,172.76,172.71,3.24]
[1752685569134,3.37,172.75,172.72,3.24]
[1752685569336,3.37,172.74,172.72,3.24]
[1752685569734,7.49070024,172.77,172.7,3.24]
[1752685569933,183.9,172.81,172.67,257.00284153]
[1752685569934,3.37,172.74,172.68,3.24]
[1752685570237,3.37,172.71,172.67,4.72354129]
[1752685571223,5.7878,172.7,172.67,4.72354129]
[1752685571437,3.37,172.69,172.67,4.72354129]
[1752685572537,3.37,172.71,172.68,3.24]
[1752685572734,3.37,172.7,172.68,3.24]
[1752685573239,3.37,172.72,172.67,4.72354129]
[1752685573438,3.37,172.7,172.67,4.72354129]
[1752685573841,3.37,172.68,172.67,4.72354129]
[1752685574341,9.1584,172.68,172.67,4.72354129]
[1752685576835,3.34,172.68,172.64,15.61]
[1752685577029,7.49070024,172.69,172.64,15.61]
[1752685577227,3.34,172.67,172.65,3.24]
[1752685577431,3.34,172.69,172.62,7.49070024]
[1752685577633,3.34,172.69,172.63,3.24]
[1752685577832,9.1283,172.69,172.63,3.24]
[1752685578033,3.34,172.69,172.63,3.24]
[1752685578431,187.22,172.72,172.63,3.24]
[1752685579240,3.34,172.7,172.63,3.24]
[1752685579732,9.1287,172.68,172.65,3.24]
[1752685580136,5.7894,172.65,172.64,15.49]
[1752685580336,9.1294,172.65,172.64,15.49]
[1752685580540,3.34,172.65,172.64,15.49]
[1752685580939,3.34,172.65,172.64,18.73]
[1752685581139,3.34,172.65,172.64,15.49]
[1752685581536,3.34,172.68,172.64,18.73]
[1752685581736,3.34,172.67,172.65,3.24]
[1752685581938,3.34,172.71,172.66,3.24]
[1752685582135,3.34,172.71,172.64,15.49]
[1752685582136,3.34,172.69,172.67,3.24]
[1752685583041,9.1282,172.69,172.67,3.24]
[1752685583245,3.34,172.69,172.67,3.24]
[1752685583637,3.34,172.71,172.65,3.24]
[1752685584130,5.7879,172.7,172.65,3.24]
[1752685584336,9.1279,172.7,172.65,3.24]
[1752685584538,3.34,172.7,172.65,3.24]
[1752685585342,5.7883,172.69,172.65,3.24]
[1752685585946,9.1278,172.7,172.65,3.24]
[1752685586240,5.7878,172.7,172.66,3.24]
[1752685586435,187.2,172.73,172.66,3.24]
[1752685587147,511.37,172.79,172.69,7.49070024]
[1752685587148,3.34,172.77,172.69,7.49070024]
[1752685587344,3.34,172.77,172.7,3.24]
[1752685587849,5.7866,172.74,172.7,3.24]
[1752685588044,3.34,172.75,172.7,3.24]
[1752685588246,3.34,172.78,172.71,3.24]
[1752685588738,3.34,172.73,172.7,3.24]
[1752685589053,3.34,172.75,172.7,3.24]
[1752685589254,9.1273,172.72,172.7,3.24]
[1752685589744,5.7873,172.72,172.66,13.27970024]
[1752685589950,3.34,172.7,172.65,3.24]
[1752685590142,3.34,172.68,172.66,3.24]
[1752685590348,3.34,172.68,172.65,3.24]
[1752685590542,191.29070024,172.72,172.65,3.24]
[1752685590543,3.34,172.67,172.65,3.24]
[1752685591145,3.34,172.67,172.64,15.49]
[1752685591340,3.34,172.67,172.66,3.24]
[1752685591545,9.1287,172.67,172.66,3.24]
[1752685592653,3.34,172.67,172.64,18.73]
[1752685592853,3.34,172.69,172.67,3.24]
[1752685593256,5.7884,172.68,172.67,3.24]
[1752685593548,3.34,172.67,172.64,15.49]
[1752685594053,5.7894,172.65,172.64,15.49]
[1752685594254,9.1294,172.65,172.64,15.49]
[1752685595352,3.34,172.65,172.64,15.49]
[1752685595952,9.1294,172.65,172.64,15.49]
[1752685597347,3.34,172.65,172.64,15.49]
[1752685597751,7.49070024,172.65,172.55,369.90135001]
[1752685597948,7.49070024,172.61,172.56,3.24]
[1752685598158,3.34,172.6,172.57,3.24]
[1752685598458,3.34,172.6,172.55,3.24]
[1752685598657,3.34,172.59,172.56,3.24]
[1752685598856,3.34,172.58,172.56,3.24]
[1752685599258,3.34,172.61,172.54,3.24]
[1752685599460,3.34,172.63,172.56,3.24]
[1752685599759,3.34,172.63,172.57,7.49070024]
[1752685600055,3.34,172.66,172.6,3.24]
[1752685600958,5.7895,172.65,172.6,3.24]
[1752685601161,3.34,172.65,172.6,3.24]
[1752685601656,3.34,172.65,172.55,7.49070024]
[1752685601657,3.34,172.64,172.55,7.49070024]
[1752685601867,3.34,172.64,172.56,3.24]
[1752685602161,3.34,172.62,172.57,3.24]
[1752685602460,7.49070024,172.63,172.55,242.24]
[1752685602659,3.34,172.62,172.57,3.24]
[1752685603558,9.1307,172.62,172.57,3.24]
[1752685603754,3.34,172.61,172.58,3.24]
[1752685603955,3.34,172.61,172.59,3.24]
[1752685604158,187.0,172.64,172.6,3.24]
[1752685604466,183.66,172.64,172.6,3.24]
[1752685604765,183.66,172.64,172.61,3.24]
[1752685604953,3.34,172.63,172.6,3.24]
[1752685605158,183.64,172.66,172.6,3.24]
[1752685605357,183.64,172.66,172.58,246.49070024]
[1752685605560,3.34,172.64,172.58,246.49070024]
[1752685605769,9.1299,172.64,172.62,3.24]
[1752685605967,3.34,172.63,172.59,3.24]
[1752685606259,3.34,172.63,172.58,239.0]
[1752685606260,3.34,172.62,172.61,3.24]
[1752685607166,5.7903,172.63,172.61,3.24]
[1752685607368,3.15,172.64,172.59,3.36]
[1752685607565,183.64,172.66,172.6,3.36]
[1752685607766,5.7893,172.66,172.61,3.36]
[1752685607962,8.9393,172.66,172.61,3.36]
[1752685608366,3.15,172.66,172.6,3.36]
[1752685608557,3.15,172.66,172.62,3.36]
[1752685608869,3.15,172.66,172.6,3.36]
[1752685609670,8.9399,172.64,172.61,3.36]
[1752685610171,3.15,172.63,172.61,3.36]
[1752685610365,10.64070024,172.66,172.59,242.36]
[1752685610665,5.79,172.64,172.59,3.36]
[1752685610862,183.56,172.63,172.59,3.36]
[1752685611065,186.71,172.65,172.6,7.49070024]
[1752685611264,3.15,172.64,172.59,3.36]
[1752685611458,3.15,172.64,172.56,7.49070024]
[1752685611459,183.56,172.64,172.6,3.36]
[1752685611665,3.15,172.6,172.58,3.36]
[1752685611867,3.15,172.62,172.57,3.36]
[1752685612472,3.15,172.62,172.58,3.36]
[1752685612870,183.56,172.64,172.59,5.7913]
[1752685612871,183.54,172.64,172.59,5.7913]
[1752685613071,3.15,172.69,172.59,3.36]
[1752685613272,3.15,172.67,172.59,3.36]
[1752685613468,3.15,172.67,172.62,3.36]
[1752685613673,7.49070024,172.67,172.63,3.36]
[1752685613871,3.15,172.65,172.63,3.36]
[1752685614076,3.15,172.67,172.64,3.36]
[1752685614278,3.15,172.66,172.64,3.36]
[1752685614972,3.15,172.65,172.64,3.36]
[1752685615865,3.15,172.66,172.62,3.36]
[1752685616271,3.15,172.65,172.62,3.36]
[1752685616575,3.15,172.66,172.63,3.36]
[1752685616774,183.5,172.67,172.63,3.36]
[1752685616974,3.15,172.64,172.63,3.36]
[1752685617566,3.15,172.63,172.61,3.36]
[1752685617879,3.15,172.61,172.58,3.36]
[1752685618176,3.15,172.61,172.59,3.36]
[1752685618563,3.15,172.61,172.59,9.1514]
[1752685618975,3.15,172.61,172.6,3.36]
[1752685619178,3.15,172.66,172.6,3.36]
[1752685619671,3.15,172.66,172.61,9.1506]
[1752685619672,3.15,172.64,172.61,9.1506]
[1752685619872,3.15,172.66,172.62,3.36]
[1752685620271,3.15,172.66,172.63,5.7899]
[1752685620472,3.15,172.65,172.59,7.49070024]
[1752685620776,3.15,172.64,172.63,3.36]
[1752685620977,3.15,172.66,172.64,3.36]
[1752685622065,183.44,172.67,172.64,3.36]
[1752685622066,189.2288,172.67,172.64,3.36]
[1752685622271,3.15,172.65,172.64,3.36]
[1752685622471,183.42,172.67,172.63,3.36]
[1752685622677,3.15,172.66,172.59,7.49070024]
[1752685622888,3.15,172.66,172.6,3.36]
[1752685623071,5.7889,172.67,172.62,5.7901]
[1752685623375,3.15,172.65,172.6,3.36]
[1752685623581,3.15,172.64,172.6,3.36]
[1752685623772,3.15,172.65,172.61,3.36]
[1752685623968,3.15,172.65,172.6,3.36]
[1752685624175,183.4,172.66,172.62,5.7902]
[1752685624370,3.15,172.64,172.62,9.1502]
[1752685624577,186.55,172.66,172.6,3.36]
[1752685624775,7.49070024,172.7,172.65,9.1494]
[1752685624982,3.15,172.67,172.65,3.36]
[1752685625174,3.15,172.67,172.66,3.36]
[1752685625377,3.15,172.68,172.67,3.36]
[1752685625578,3.15,172.68,172.65,3.36]
[1752685625782,3.15,172.67,172.65,3.36]
[1752685625983,3.15,172.67,172.61,7.49070024]